fUST/lending_fUST_20250702
["ID","MTS","AMOUNT","RATE_DAILY","PERIOD"]
[368941385,1751400644199,-2674.25726464,0.00024366,2]
[368941387,1751400644210,-1169.139138,0.00024394,4]
[368941389,1751400644219,-151.0,0.00024426,7]
[368941391,1751400644229,-473.80922375,0.00024452,11]
[368941393,1751400644238,-2714.95,0.000245,30]
[368941395,1751400644247,-2674.25726465,0.00024528,2]
[368941397,1751400644257,-193.96505387,0.00024579,2]
[368941399,1751400644266,-151.0,0.00024579,2]
[368941401,1751400644275,-800.0,0.0002458,2]
[368941403,1751400644284,-306.0,0.00024603,2]
[368941405,1751400644293,-17094.79129934,0.00024651,2]
[368941407,1751400644303,-310.0,0.00024657,2]
[368941409,1751400644311,-200.0,0.00024658,15]
[368941411,1751400644321,-800.0,0.0002466,2]
[368941413,1751400644330,-473.80922375,0.00024693,11]
[368941415,1751400644339,-1489.054162,0.000247,5]
[368941417,1751400644349,-211.0,0.00024707,2]
[368941419,1751400644358,-200.0,0.0002471,11]
[368941421,1751400644367,-1000.0,0.0002472,5]
[368941423,1751400644377,-1000.0,0.0002474,5]
[368941425,1751400644388,-1000.0,0.0002476,5]
[368941427,1751400644398,-800.0,0.00024772,2]
[368941429,1751400644407,-800.0,0.00024778,2]
[368941431,1751400644417,-1000.0,0.0002478,5]
[368941433,1751400644426,-800.0,0.00024783,2]
[368941435,1751400644435,-185.58356487,0.00024799,2]
[368941437,1751400644445,-1000.0,0.000248,5]
[368941439,1751400644454,-169.04463359,0.000248,2]
[368941441,1751400644463,-1000.0,0.000248,2]
[368941443,1751400644472,-188.591227,0.000248,2]
[368941445,1751400644482,-16119.87952409,0.000248,2]
[368941447,1751400644494,-300.0,0.000248,2]
[368941450,1751400644505,-63636.73223361,0.000248,2]
[368941452,1751400644515,-707.24696545,0.000248,2]
[368941454,1751400644524,-151.0,0.00024821,7]
[368941456,1751400644533,-11436.6588225,0.0002489,2]
[368941457,1751400644542,-460.65704003,0.0002489,2]
[368941459,1751400644551,-137239.90587,0.0002489,2]
[368941461,1751400644561,-2147.06,0.0002489,10]
[368941463,1751400644572,-151.0,0.0002489,7]
[368941465,1751400644581,-151.0,0.0002489,7]
[368941467,1751400644590,-1789.22,0.0002489,10]
[368941469,1751400644599,-98750.87848871,0.00024899,7]
[368941472,1751400644610,-10567.18827232,0.00024899,7]
[368941477,1751400644648,-398.076,0.00020307,2]
[368941479,1751400644659,-61.924,0.00020307,2]
[368941481,1751400644669,-259.8842589,0.00020581,2]
[368941483,1751400644678,-622.12419274,0.00024899,7]
[368941485,1751400644691,-1346.06754836,0.00024899,7]
[368941489,1751400644725,-177.5971231,0.00024329,2]
[368941492,1751400644735,-575.5050994,0.00024329,2]
[368941493,1751400644744,-151.0,0.0002489,7]
[368941495,1751400644754,-241887.43015215,0.00024899,7]
[368941505,1751400644833,-1226.73059379,0.00024899,7]
[368941507,1751400644845,-11664.23980239,0.00024899,7]
[368941601,1751400646480,-460.0,0.00017293,2]
[368941602,1751400646492,-1491.01,0.0002419,10]
[368941603,1751400646514,-159.3450821,0.00024329,2]
[368941604,1751400646537,-17962.69556817,0.00024899,7]
[368941605,1751400790772,268.0114826,0.00016294,2]
[368941607,1751400853482,164.173836,0.00013699,2]
[368941609,1751400930542,1338.0,0.00015,2]
[368941610,1751400978120,8763.3642802,0.00016292,2]
[368941611,1751400978152,2563.7600351,0.00016292,2]
[368941612,1751401054894,820.1506077,0.00016292,2]
[368941613,1751401533134,-329.87110956,0.00017189,2]
[368941614,1751401533157,-675.41786984,0.00017279,2]
[368941615,1751401533181,-211.81,0.00017283,3]
[368941616,1751401533206,-1200.0,0.00017285,2]
[368941617,1751401533231,-300.0,0.00017286,2]
[368941618,1751401533259,-300.0,0.00017286,2]
[368941619,1751401533284,-300.0,0.00017286,2]
[368941620,1751401533308,-300.0,0.00017286,2]
[368941621,1751401533333,-300.0,0.00017286,2]
[368941622,1751401533357,-460.0,0.00017287,2]
[368941623,1751401533380,-500.0,0.00017287,2]
[368941624,1751401533403,-254.7172477,0.00017287,2]
[368941625,1751401533426,-500.0,0.00017287,2]
[368941626,1751401533449,-500.0,0.00017287,2]
[368941627,1751401533472,-195.85856536,0.00017287,2]
[368941628,1751401544091,-413.02015429,0.00017287,2]
[368941629,1751401582931,16616.0893572,0.00016289,2]
[368941630,1751401582955,8283.9106428,0.00016289,2]
[368941631,1751401584538,165.03300639,0.00016289,2]
[368941632,1751401584562,9834.96699361,0.00016289,2]
[368941633,1751401612737,200.0,0.0002465,120]
[368941634,1751401625104,-205.61546908,0.00017186,2]
[368941635,1751401625129,-300.0,0.00017285,2]
[368941636,1751401625152,-10.44429747,0.00017286,2]
[368941637,1751401633105,-1189.55570253,0.00017286,2]
[368941638,1751401633127,-500.0,0.00017286,2]
[368941639,1751401633148,-500.0,0.00017286,2]
[368941640,1751401633170,-500.0,0.00017286,2]
[368941641,1751401633191,-500.0,0.00017286,2]
[368941642,1751401633215,-500.0,0.00017286,2]
[368941643,1751401633235,-500.0,0.00017286,2]
[368941644,1751401633257,-500.0,0.00017286,2]
[368941645,1751401633278,-500.0,0.00017286,2]
[368941646,1751401633305,-500.0,0.00017286,2]
[368941647,1751401633329,-466.74077445,0.00017286,2]
[368941648,1751401633352,-500.0,0.00017286,2]
[368941649,1751401633375,-500.0,0.00017286,2]
[368941650,1751401633397,-500.0,0.00017286,2]
[368941651,1751401633422,-500.0,0.00017286,2]
[368941652,1751401633443,-500.0,0.00017286,2]
[368941653,1751401633465,-500.0,0.00017286,2]
[368941654,1751401633487,-500.0,0.00017286,2]
[368941655,1751401633509,-500.0,0.00017286,2]
[368941656,1751401633533,-500.0,0.00017286,2]
[368941657,1751401633555,-500.0,0.00017286,2]
[368941658,1751401633576,-211.62935071,0.00017286,2]
[368941659,1751401633598,-500.0,0.00017286,2]
[368941660,1751401633620,-500.0,0.00017286,2]
[368941661,1751401633641,-480.17051775,0.00017286,2]
[368941662,1751401633662,-500.0,0.00017286,2]
[368941663,1751401633684,-626.75478276,0.00017286,2]
[368941664,1751401633706,-500.0,0.00017286,2]
[368941665,1751401633727,-500.0,0.00017286,2]
[368941666,1751401633748,-500.0,0.00017286,2]
[368941667,1751401633770,-500.0,0.00017286,2]
[368941668,1751401633792,-500.0,0.00017286,2]
[368941669,1751401633814,-500.0,0.00017286,2]
[368941670,1751401633836,-500.0,0.00017286,2]
[368941671,1751401633858,-500.0,0.00017286,2]
[368941672,1751401633880,-500.0,0.00017286,2]
[368941673,1751401633900,-135.95716797,0.00017286,2]
[368941674,1751401638092,-460.0,0.00017286,2]
[368941675,1751401638114,-364.04283203,0.00017286,2]
[368941676,1751401638137,-76.4162481,0.00017286,2]
[368941745,1751401832797,-309.26634662,0.00017189,2]
[368941747,1751401832809,-500.0,0.00017273,2]
[368941749,1751401832822,-300.0,0.00017284,2]
[368941752,1751401832834,-300.0,0.00017284,2]
[368941754,1751401832848,-300.0,0.00017284,2]
[368941756,1751401832860,-1200.0,0.00017284,2]
[368941759,1751401832872,-500.0,0.00017285,2]
[368941761,1751401832883,-224.07143449,0.00017285,2]
[368941763,1751401832897,-486.23156871,0.00017285,2]
[368941766,1751401832910,-500.0,0.00017285,2]
[368941767,1751401832922,-619.33042146,0.00017285,2]
[368941768,1751401832935,-50000.0,0.00017285,2]
[368941770,1751401832948,-460.0,0.00017286,2]
[368941771,1751401832961,-635.46,0.00017286,3]
[368941772,1751401832973,-460.0,0.00017286,2]
[368941773,1751401832984,-460.0,0.00017286,2]
[368941774,1751401832996,-460.0,0.00017286,2]
[368941775,1751401833007,-525.07,0.00017286,2]
[368941776,1751401833018,-579.06,0.00017286,2]
[368941777,1751401833028,-460.0,0.00017286,2]
[368941778,1751401833039,-460.0,0.00017286,2]
[368941779,1751401833051,-460.0,0.00017286,2]
[368941780,1751401833063,-460.0,0.00017286,2]
[368941781,1751401833074,-460.0,0.00017286,2]
[368941782,1751401833086,-460.0,0.00017286,2]
[368941783,1751401833098,-460.0,0.00017286,2]
[368941784,1751401833109,-460.0,0.00017286,2]
[368941785,1751401833122,-460.0,0.00017286,2]
[368941786,1751401833135,-460.0,0.00017286,2]
[368941787,1751401833146,-460.0,0.00017286,2]
[368941788,1751401833160,-573.76,0.00017286,2]
[368941789,1751401833173,-460.0,0.00017286,2]
[368941790,1751401833185,-569.53538902,0.00017286,2]
[368941791,1751401833198,-404.8253522,0.00017286,2]
[368941792,1751401833214,-55.1746478,0.00017286,2]
[368941793,1751401833227,-460.0,0.00017286,2]
[368941794,1751401833238,-460.0,0.00017286,2]
[368941795,1751401833249,-460.0,0.00017286,2]
[368941796,1751401833259,-460.0,0.00017286,2]
[368941797,1751401833270,-46.97984571,0.00017287,2]
[368941798,1751401833281,-460.0,0.00017287,2]
[368941799,1751401833293,-460.0,0.00017287,2]
[368941800,1751401833304,-460.0,0.00017287,2]
[368941801,1751401833316,-460.0,0.00017289,2]
[368941802,1751401833329,-460.0,0.00017289,2]
[368941803,1751401833342,-460.0,0.00017289,2]
[368941804,1751401833356,-460.0,0.00017289,2]
[368941805,1751401833368,-460.0,0.00017289,2]
[368941806,1751401833378,-460.0,0.00017289,2]
[368941807,1751401833388,-460.0,0.00017289,2]
[368941808,1751401833400,-225.52620187,0.00017289,2]
[368941809,1751401833412,-460.0,0.00017289,2]
[368941810,1751401833424,-460.0,0.00017289,2]
[368941811,1751401833434,-346.61310875,0.00017289,2]
[368941812,1751401833446,-460.0,0.00017289,2]
[368941813,1751401833457,-460.0,0.00017289,2]
[368941814,1751401833468,-494.09,0.00017289,2]
[368941815,1751401833479,-460.0,0.00017289,2]
[368941816,1751401833490,-460.0,0.00017289,2]
[368941817,1751401833502,-460.0,0.00017289,2]
[368941818,1751401833512,-505.42,0.00017289,2]
[368941819,1751401833526,-545.51,0.00017289,2]
[368941820,1751401833537,-460.0,0.00017289,2]
[368941821,1751401833549,-460.0,0.00017289,2]
[368941822,1751401833561,-460.0,0.00017289,2]
[368941823,1751401833572,-460.0,0.00017289,2]
[368941824,1751401833583,-460.0,0.00017289,2]
[368941825,1751401833594,-460.0,0.00017289,2]
[368941826,1751401833606,-255.73873486,0.00017289,2]
[368941827,1751401833617,-460.0,0.00017289,2]
[368941828,1751401833629,-460.0,0.00017289,2]
[368941829,1751401833641,-580.6,0.00017289,2]
[368941830,1751401833652,-460.0,0.00017289,2]
[368941831,1751401833663,-460.0,0.00017289,2]
[368941832,1751401833675,-471.76,0.00017289,2]
[368941833,1751401833688,-460.0,0.00017289,2]
[368941834,1751401833703,-460.0,0.00017289,2]
[368941835,1751401833716,-460.0,0.00017289,2]
[368941836,1751401833728,-460.0,0.00017289,2]
[368941837,1751401833741,-460.0,0.00017289,2]
[368941838,1751401833752,-460.0,0.00017289,2]
[368941839,1751401833764,-460.0,0.00017289,2]
[368941840,1751401833776,-460.0,0.00017289,2]
[368941841,1751401833788,-460.0,0.00017289,2]
[368941842,1751401833799,-460.0,0.00017289,2]
[368941843,1751401833811,-460.0,0.00017289,2]
[368941844,1751401833822,-460.0,0.00017291,2]
[368941845,1751401833833,-560.0,0.00017291,2]
[368941846,1751401833844,-460.0,0.00017291,2]
[368941847,1751401833856,-376.00838907,0.00017291,2]
[368941848,1751401833868,-460.0,0.00017291,2]
[368941849,1751401833879,-460.0,0.00017291,2]
[368941850,1751401833891,-460.0,0.00017291,2]
[368941851,1751401833902,-299.49543788,0.00017291,2]
[368941852,1751401833913,-460.0,0.00017291,2]
[368941853,1751401833924,-460.0,0.00017291,2]
[368941854,1751401833935,-460.0,0.00017291,2]
[368941855,1751401833947,-460.0,0.00017291,2]
[368941856,1751401833959,-460.0,0.00017291,2]
[368941857,1751401833971,-460.0,0.00017291,2]
[368941858,1751401833983,-460.0,0.00017291,2]
[368941859,1751401833995,-460.0,0.00017291,2]
[368941860,1751401834006,-460.0,0.00017291,2]
[368941861,1751401834017,-460.0,0.00017291,2]
[368941862,1751401834029,-460.0,0.00017291,2]
[368941863,1751401834040,-460.0,0.00017291,2]
[368941864,1751401834209,-460.0,0.00017291,2]
[368941865,1751401834234,-460.0,0.00017291,2]
[368941866,1751401834245,-460.0,0.00017291,2]
[368941867,1751401834254,-460.0,0.00017291,2]
[368941868,1751401834263,-460.0,0.00017291,2]
[368941869,1751401834274,-460.0,0.00017291,2]
[368941870,1751401834283,-460.0,0.00017291,2]
[368941871,1751401834293,-460.0,0.00017291,2]
[368941872,1751401834303,-460.0,0.00017291,2]
[368941873,1751401834312,-460.0,0.00017291,2]
[368941874,1751401834321,-460.0,0.00017291,2]
[368941875,1751401834331,-460.0,0.00017291,2]
[368941876,1751401834341,-460.0,0.00017291,2]
[368941877,1751401834355,-460.0,0.00017291,2]
[368941878,1751401834364,-460.0,0.00017291,2]
[368941879,1751401834374,-460.0,0.00017291,2]
[368941880,1751401834383,-460.0,0.00017291,2]
[368941881,1751401834392,-567.24,0.00017291,2]
[368941882,1751401834402,-460.0,0.00017291,2]
[368941883,1751401834412,-460.0,0.00017291,2]
[368941884,1751401834423,-460.0,0.00017291,2]
[368941885,1751401834435,-460.0,0.00017291,2]
[368941886,1751401834444,-460.0,0.00017291,2]
[368941887,1751401834454,-460.0,0.00017291,2]
[368941888,1751401834463,-460.0,0.00017291,2]
[368941889,1751401834473,-460.0,0.00017291,2]
[368941890,1751401834484,-460.0,0.00017291,2]
[368941891,1751401834493,-460.0,0.00017291,2]
[368941892,1751401834503,-460.0,0.00017291,2]
[368941893,1751401834512,-460.0,0.00017291,2]
[368941894,1751401834521,-460.0,0.00017291,2]
[368941895,1751401834531,-484.82,0.00017291,2]
[368941896,1751401834541,-518.65,0.00017291,2]
[368941897,1751401834550,-460.0,0.00017291,2]
[368941898,1751401834559,-460.0,0.00017291,2]
[368941899,1751401834569,-460.0,0.00017291,2]
[368941900,1751401834578,-460.0,0.00017291,2]
[368941901,1751401834587,-460.0,0.00017291,2]
[368941902,1751401834597,-460.0,0.00017291,2]
[368941903,1751401834607,-460.0,0.00017291,2]
[368941904,1751401834616,-460.0,0.00017291,2]
[368941905,1751401834626,-460.0,0.00017291,2]
[368941906,1751401834636,-460.0,0.00017291,2]
[368941907,1751401834645,-460.0,0.00017291,2]
[368941908,1751401834655,-581.11,0.00017291,2]
[368941909,1751401834664,-460.0,0.00017291,2]
[368941910,1751401834674,-460.0,0.00017291,2]
[368941911,1751401834683,-460.0,0.00017291,2]
[368941912,1751401834693,-460.0,0.00017291,2]
[368941913,1751401834703,-460.0,0.00017291,2]
[368941914,1751401834714,-460.0,0.00017291,2]
[368941915,1751401834724,-339.11683842,0.00017291,2]
[368941916,1751401834733,-460.0,0.00017291,2]
[368941917,1751401834743,-160.0,0.00017292,2]
[368941918,1751401834752,-389.77131047,0.00017292,2]
[368941919,1751401834762,-460.0,0.00017292,2]
[368941920,1751401834771,-460.0,0.00017292,2]
[368941921,1751401834781,-460.0,0.00017292,2]
[368941922,1751401834791,-460.0,0.00017292,2]
[368941923,1751401834800,-460.0,0.00017292,2]
[368941924,1751401834809,-500.99989822,0.00017292,2]
[368941925,1751401834819,-482.12896341,0.00017292,2]
[368941926,1751401834828,-460.0,0.00017292,2]
[368941927,1751401834838,-460.0,0.00017292,2]
[368941928,1751401834848,-460.0,0.00017292,2]
[368941929,1751401834858,-243.45,0.00017292,2]
[368941930,1751401834867,-460.0,0.00017292,2]
[368941931,1751401834876,-460.0,0.00017292,2]
[368941932,1751401834885,-460.0,0.00017292,2]
[368941933,1751401834895,-460.0,0.00017292,2]
[368941934,1751401834904,-545.1987383,0.00017292,2]
[368941935,1751401834914,-460.0,0.00017292,2]
[368941936,1751401834924,-460.0,0.00017292,2]
[368941937,1751401834934,-460.0,0.00017292,2]
[368941938,1751401834943,-460.0,0.00017292,2]
[368941939,1751401834952,-460.0,0.00017292,2]
[368941940,1751401834962,-460.0,0.00017292,2]
[368941941,1751401834972,-460.0,0.00017292,2]
[368941942,1751401834982,-436.94811584,0.00017292,2]
[368941943,1751401834992,-460.0,0.00017292,2]
[368941944,1751401835003,-460.0,0.00017292,2]
[368941945,1751401835012,-402.34417195,0.00017292,2]
[368941946,1751401835021,-460.0,0.00017292,2]
[368941947,1751401835031,-460.0,0.00017292,2]
[368941948,1751401835040,-276.96288107,0.00017292,2]
[368941949,1751401835050,-460.0,0.00017292,2]
[368941950,1751401835059,-460.0,0.00017292,2]
[368941951,1751401835068,-416.64,0.00017292,2]
[368941952,1751401835077,-460.0,0.00017292,2]
[368941953,1751401835087,-460.0,0.00017292,2]
[368941954,1751401835097,-597.58477591,0.00017292,2]
[368941955,1751401835106,-460.0,0.00017292,2]
[368941956,1751401835115,-460.0,0.00017292,2]
[368941957,1751401835124,-460.0,0.00017292,2]
[368941958,1751401835133,-460.0,0.00017292,2]
[368941959,1751401835142,-460.0,0.00017292,2]
[368941960,1751401835151,-460.0,0.00017292,2]
[368941961,1751401835160,-294.04031637,0.00017292,2]
[368941962,1751401835169,-426.35315701,0.00017292,2]
[368941963,1751401835178,-296.41138708,0.00017292,2]
[368941964,1751401835188,-396.31568514,0.00017292,2]
[368941965,1751401835197,-460.0,0.00017292,2]
[368941966,1751401835206,-607.79054759,0.00017292,2]
[368941967,1751401835215,-460.0,0.00017293,2]
[368941968,1751401835225,-460.0,0.00017293,2]
[368941969,1751401835234,-460.0,0.00017293,2]
[368941970,1751401835243,-550.90009187,0.00017293,2]
[368941971,1751401835253,-460.0,0.00017293,2]
[368941972,1751401835262,-460.0,0.00017293,2]
[368941973,1751401835271,-500.0,0.00017293,2]
[368941974,1751401835280,-500.0,0.00017294,2]
[368941975,1751401835289,-398.12231248,0.00017296,2]
[368941976,1751401835298,-460.0,0.00017296,2]
[368941977,1751401835307,-460.0,0.00017296,2]
[368941978,1751401835317,-460.0,0.00017296,2]
[368941979,1751401835326,-184.76156487,0.00017296,2]
[368941980,1751401835336,-460.0,0.0001756,2]
[368941981,1751401835345,-460.0,0.0001756,2]
[368941982,1751401835356,-460.0,0.0001756,2]
[368941983,1751401835367,-460.0,0.0001756,2]
[368941984,1751401835376,-460.0,0.0001756,2]
[368941985,1751401835386,-460.0,0.0001756,2]
[368941986,1751401835395,-189.15,0.0001756,2]
[368941987,1751401835406,-460.0,0.0001756,2]
[368941988,1751401835416,-420.0,0.00017561,2]
[368941989,1751401835426,-460.0,0.00017563,2]
[368941990,1751401835436,-460.0,0.00017563,2]
[368941991,1751401835446,-279.16606981,0.00017563,2]
[368941992,1751401835455,-460.0,0.00017563,2]
[368941993,1751401835465,-460.0,0.00017563,2]
[368941994,1751401835476,-460.0,0.00017563,2]
[368941995,1751401835485,-460.0,0.00017563,2]
[368941996,1751401835495,-585.28,0.00017563,2]
[368941997,1751401835505,-460.0,0.00017563,2]
[368941998,1751401835515,-460.0,0.00017563,2]
[368941999,1751401835524,-520.78,0.00017563,2]
[368942000,1751401835534,-460.0,0.00017563,2]
[368942001,1751401835544,-460.0,0.00017565,2]
[368942002,1751401835553,-460.0,0.00017565,2]
[368942003,1751401835563,-460.0,0.00017565,2]
[368942004,1751401835573,-154.5,0.00017565,2]
[368942005,1751401835582,-460.0,0.00017565,2]
[368942006,1751401835592,-228.52,0.00017565,2]
[368942007,1751401835602,-349.64,0.00017565,2]
[368942008,1751401835611,-583.13,0.00017565,2]
[368942009,1751401835621,-460.0,0.00017566,2]
[368942010,1751401835631,-460.0,0.00017566,2]
[368942011,1751401835640,-460.0,0.00017566,2]
[368942012,1751401835649,-460.0,0.0001757,2]
[368942013,1751401835659,-1000.0,0.00017821,2]
[368942014,1751401835668,-855.06,0.00017832,3]
[368942015,1751401835677,-460.0,0.00017834,2]
[368942016,1751401835687,-460.0,0.00017834,2]
[368942017,1751401835696,-460.0,0.00017834,2]
[368942018,1751401835708,-460.0,0.00017834,2]
[368942019,1751401835717,-460.0,0.00017837,2]
[368942020,1751401835727,-460.0,0.00017837,2]
[368942021,1751401835736,-460.0,0.00017837,2]
[368942022,1751401835745,-395.02,0.00017837,2]
[368942023,1751401835754,-460.0,0.00017837,2]
[368942024,1751401835763,-348.33,0.00017837,2]
[368942025,1751401835772,-267.21,0.00017837,2]
[368942026,1751401835782,-460.0,0.00017839,2]
[368942027,1751401835791,-347.43,0.0001784,2]
[368942028,1751401835800,-460.0,0.00017842,2]
[368942029,1751401835809,-460.0,0.00017842,2]
[368942030,1751401835819,-460.0,0.00017842,2]
[368942031,1751401835828,-383.5,0.00017844,2]
[368942032,1751401835837,-460.0,0.00018108,2]
[368942033,1751401835847,-460.0,0.00018108,2]
[368942034,1751401835856,-460.0,0.00018108,2]
[368942035,1751401835865,-460.0,0.00018108,2]
[368942036,1751401835874,-460.0,0.00018111,2]
[368942037,1751401835885,-102.78960808,0.00018111,2]
[368942038,1751401835963,-357.21039192,0.00018111,2]
[368942039,1751401835972,-496.75,0.00018111,2]
[368942040,1751401835982,-175.09547516,0.00018111,2]
[368942041,1751401835994,-284.90452484,0.00018111,2]
[368942042,1751401836003,-460.0,0.00018113,2]
[368942043,1751401836012,-110.49547516,0.00018313,2]
[368942044,1751401836024,-198.77087145,0.00018313,2]
[368942045,1751401836034,-890.56650106,0.00018368,2]
[368942046,1751401836043,-332.33,0.00018382,2]
[368942047,1751401836053,-311.95139149,0.00018382,2]
[368942048,1751401836064,-148.04860851,0.00018382,2]
[368942049,1751401836074,-460.0,0.00018382,2]
[368942050,1751401836083,-460.0,0.00018382,2]
[368942051,1751401836092,-460.0,0.00018385,2]
[368942052,1751401836102,-460.0,0.00018385,2]
[368942053,1751401836111,-460.0,0.00018385,2]
[368942054,1751401836120,-307.2773514,0.000185,2]
[368942055,1751401836130,-307.27735132,0.000185,2]
[368942056,1751401836139,-307.27735132,0.000185,2]
[368942057,1751401836148,-460.0,0.00018656,2]
[368942058,1751401836158,-460.0,0.00018656,2]
[368942059,1751401836167,-460.0,0.00018656,2]
[368942060,1751401836176,-460.0,0.00018659,2]
[368942061,1751401836186,-460.0,0.00018659,2]
[368942062,1751401836195,-460.0,0.00018659,2]
[368942063,1751401836204,-837.20943635,0.00018721,2]
[368942064,1751401836214,-160.0,0.00018721,2]
[368942065,1751401836223,-215.01728679,0.00018721,2]
[368942066,1751401836233,-230.32585361,0.00018721,2]
[368942067,1751401836243,-160.0,0.00018721,2]
[368942068,1751401836253,-307.27735132,0.00018728,2]
[368942069,1751401836262,-256.0,0.00018873,2]
[368942070,1751401836272,-304.0,0.00018875,2]
[368942071,1751401836281,-401.16,0.0001893,2]
[368942072,1751401836290,-225.09,0.0001893,2]
[368942073,1751401836299,-460.0,0.0001893,2]
[368942074,1751401836308,-460.0,0.00018933,2]
[368942075,1751401836318,-460.0,0.00018933,2]
[368942076,1751401836328,-460.0,0.00018933,2]
[368942077,1751401836338,-1200.0,0.00018966,2]
[368942078,1751401836348,-307.27735132,0.00019003,2]
[368942079,1751401836360,-460.0,0.00019204,2]
[368942080,1751401836370,-460.0,0.00019207,2]
[368942081,1751401836380,-460.0,0.00019207,2]
[368942082,1751401836389,-460.0,0.00019207,2]
[368942083,1751401836400,-307.27735132,0.00019279,2]
[368942084,1751401836409,-309.26634661,0.00019437,2]
[368942085,1751401836419,-493.13,0.00019478,2]
[368942086,1751401836429,-452.91,0.00019481,2]
[368942087,1751401836439,-460.0,0.00019481,2]
[368942088,1751401836448,-344.99,0.00019481,2]
[368942089,1751401836458,-307.27735132,0.00019555,2]
[368942090,1751401836467,-460.0,0.00019755,2]
[368942091,1751401836477,-307.27735132,0.00019831,2]
[368942092,1751401836487,-247.60000001,0.00020029,2]
[368942093,1751401836496,-307.27735132,0.00020107,2]
[368942094,1751401836507,-307.27735132,0.00020383,3]
[368942095,1751401836517,-32460.56895482,0.00020519,2]
[368942097,1751401838561,-514.08386475,0.00017284,2]
[368942098,1751401838571,-500.0,0.00017284,2]
[368942099,1751401838580,-500.0,0.00017284,2]
[368942100,1751401838591,-500.0,0.00017284,2]
[368942101,1751401838600,-207.61447382,0.00017284,2]
[368942102,1751401838618,-292.38552618,0.00017284,2]
[368942103,1751401838627,-500.0,0.00017284,2]
[368942104,1751401838636,-500.0,0.00017284,2]
[368942105,1751401838646,-500.0,0.00017284,2]
[368942106,1751401838655,-500.0,0.00017284,2]
[368942107,1751401838664,-500.0,0.00017284,2]
[368942108,1751401838673,-292.71447382,0.00017284,2]
[368942109,1751401838685,-207.28552618,0.00017284,2]
[368942110,1751401838694,-500.0,0.00017284,2]
[368942111,1751401838703,-174.26419229,0.00017284,2]
[368942112,1751401838711,-360.85763435,0.00017284,2]
[368942113,1751401838721,-500.0,0.00017284,2]
[368942114,1751401838730,-500.0,0.00017284,2]
[368942115,1751401838739,-500.0,0.00017284,2]
[368942116,1751401838748,-500.0,0.00017284,2]
[368942117,1751401838757,-500.0,0.00017284,2]
[368942118,1751401838767,-500.0,0.00017284,2]
[368942119,1751401838776,-500.0,0.00017284,2]
[368942120,1751401838785,-500.0,0.00017284,2]
[368942121,1751401838795,-168.11150285,0.00017284,2]
[368942122,1751401838805,-500.0,0.00017284,2]
[368942123,1751401838815,-500.0,0.00017284,2]
[368942124,1751401838824,-12417.88217872,0.00020519,2]
[368942125,1751401838848,-2140.0,0.00020519,2]
[368942127,1751401838859,-1241.1733763,0.00020519,2]
[368942128,1751401838870,-377.33167231,0.00020519,2]
[368942129,1751401838881,-1476.8542889,0.00020519,2]
[368942278,1751401842278,-226.94372598,0.00020519,2]